Cogmind - Beta 14 @@@ ROGUE MODE // 2025.05.05 @ 19:46:18 Player: Rotpup_ Result: Destroyed by G-73 Enforcer with Phase Gun Performance ------------- Evolutions (5) 2500 Regions Visited (15) 3000 Robots Destroyed (62) 310 Value Destroyed (2015) 2015 Prototype IDs (29) 580 Alien Tech Used (0) 0 Bonus (2158) 2158 TOTAL SCORE: 10563 Bonus ------- High Alert Combat Kills 34 Follower Combat Kills 824 Aligned with FarCom 300 Met Warlord at Base 500 MAIN.C Attacked Warlord 500 Cogmind --------- Core Integrity 0/1000 Matter 300/300 Energy 99/100 System Corruption 12% Temperature Cool (9) Movement Core (50) Location -4/Proximity Caves Parts ------- > --- POWER (2) -------- (None) > --- PROPULSION (4) --- (None) > --- UTILITY (9) ------ Advanced Signal Interpreter Advanced Melee Analysis Suite Target Analyzer > --- WEAPON (2) ------- (None) > --- INVENTORY (5) ---- Backup Laser III RU-N14's Throwing Claymores v3 (4) Peak State ------------ > --- POWER ------------ Light Angular Momentum Engine Light Antimatter Reactor > --- PROPULSION ------- Cesium-ion Thruster Cesium-ion Thruster Cesium-ion Thruster Improved Cesium-ion Thruster > --- UTILITY ---------- Advanced Signal Interpreter Advanced Terrain Scan Processor 0b10 Alert Chip Advanced Melee Analysis Suite Advanced Melee Analysis Suite Target Analyzer Advanced ECM Suite Hacking Suite > --- WEAPON ----------- Backup Laser III Segregator > --- INVENTORY -------- Light Deuterium Engine Heavy Gauss Cannon RU-N14's Throwing Claymores v3 Segregator [Rating: 71] Favorites ----------- Power Light Ion Engine Engine Light Ion Engine Power Core Light Nuclear Core Reactor Antimatter Reactor Propulsion Armored Treads Treads Armored Treads Wheel Armored Wheel Hover Unit Aerolev Unit Flight Unit Cesium-ion Thruster Utility Hacking Suite Device Structural Scanner Storage Small Storage Unit Processor 0b10 Alert Chip Hackware Hacking Suite Protection Improved Light Armor Plating Weapon Katana Energy Gun EM Pulse Gun Ballistic Gun Assault Rifle Ballistic Cannon Heavy Gauss Cannon Launcher Proton Missile Launcher Special Weapon Remote Datajack Impact Weapon Heavy Mace Slashing Weapon Katana Special Melee Weapon Datajack Build | -11 -10 -10 -10 -9 -8 -7 -7 -7 -7 -6 -5 -5 -5 -5 -4 ------- Run | Yrd Mat Min Exi Min Mat Fac Was Fac Sto Fac Fac Upp Upp War Pro Slots Evolved 10 | . . . . . 4 2 . . . 2 2 . . . . Power 1 | . . . . . . . . . . 1 . . . . . Propulsion 2 | . . . . . 2 . . . . . . . . . . Utility 7 | . . . . . 2 2 . . . 1 2 . . . . Weapon . | . . . . . . . . . . . . . . . . Parts Attached 138 | 7 4 2 10 2 22 11 7 7 17 10 4 8 8 13 6 Power 29 | 1 . 1 1 2 3 2 1 2 6 1 . 1 1 4 3 Engine 22 | 1 . 1 1 2 2 . . 2 5 1 . 1 1 3 2 Core 4 | . . . . . 1 2 . . 1 . . . . . . Reactor 3 | . . . . . . . 1 . . . . . . 1 1 Propulsion 38 | 2 . . 2 . 5 6 6 1 8 2 . 2 . 3 1 Treads 9 | 2 . . . . 4 1 2 . . . . . . . . Leg . | . . . . . . . . . . . . . . . . Wheel 1 | . . . . . . . . . . . . . . . 1 Hover 3 | . . . . . . . . . 3 . . . . . . Flight 25 | . . . 2 . 1 5 4 1 5 2 . 2 . 3 . Utility 33 | 2 3 1 1 . 5 2 . 3 1 7 4 2 . 2 . Device 12 | 1 . 1 . . 2 . . 1 1 3 1 1 . 1 . Storage 4 | 1 3 . . . . . . . . . . . . . . Processor 11 | . . . 1 . 2 2 . 1 . 3 2 . . . . Hackware 2 | . . . . . 1 . . 1 . . . . . . . Protection 4 | . . . . . . . . . . 1 1 1 . 1 . Artifact . | . . . . . . . . . . . . . . . . Weapon 38 | 2 1 . 6 . 9 1 . 1 2 . . 3 7 4 2 Energy Gun 7 | . 1 . 2 . 3 . . . . . . 1 . . . Energy Cannon . | . . . . . . . . . . . . . . . . Ballistic Gun 7 | 2 . . 3 . . . . . . . . 1 1 . . Ballistic Cannon 3 | . . . . . . . . . . . . . 1 1 1 Launcher 6 | . . . 1 . 4 . . . 1 . . . . . . Special Weapon 4 | . . . . . . . . . . . . . 2 2 . Impact Weapon 4 | . . . . . 1 . . . . . . 1 2 . . Slashing Weapon 4 | . . . . . 1 . . . 1 . . . . 1 1 Piercing Weapon . | . . . . . . . . . . . . . . . . Special Melee Weapon 3 | . . . . . . 1 . 1 . . . . 1 . . Unidentified Prototypes 5 | . . . . . . . . . 4 . . . . 1 . Parts Lost 60 | . 2 . . . 7 10 . 1 9 4 1 3 6 2 15 Power 12 | . 1 . . . 1 2 . . 2 . . . 2 1 3 Propulsion 25 | . . . . . 3 6 . 1 4 4 . 1 1 1 4 Utility 12 | . 1 . . . 1 1 . . 1 . 1 1 1 . 5 Weapon 11 | . . . . . 2 1 . . 2 . . 1 2 . 3 Highest Loss Streak 8 | . 2 . . . 3 5 . 1 4 3 4 3 4 2 8 To Critical Strikes . | . . . . . . . . . . . . . . . . Average Slot Usage (%) 85 | . 98 100 97 100 96 72 81 98 85 78 58 70 66 76 47 Engine 6 | . 13 14 14 14 4 . . 5 4 6 5 7 3 9 2 Core 1 | . . . . . 4 4 4 . 1 . . . . . . Treads 11 | . 28 28 . . 28 14 2 . . . . . . . . Hover 1 | . . . . . . . . . 6 17 . . . 2 . Flight 10 | . . . 28 28 5 5 19 29 19 4 5 10 9 10 2 Device 6 | . 13 14 14 14 12 3 . 5 2 2 1 . . 1 . Storage 1 | . 14 14 1 . . . . . . . . . . . . Processor 22 | . . . 12 14 18 24 30 25 23 23 31 41 38 35 30 Hackware 6 | . . . . . 4 7 7 12 15 13 5 5 5 5 . Energy Gun 4 | . 5 14 12 14 6 . 5 3 . . . . . 5 . Ballistic Gun 4 | . 22 14 12 14 3 . . . . . . 2 1 . . Slashing Weapon 3 | . . . . . 2 7 7 7 6 6 5 . . 1 2 Peak Build Rating 71 | 7 7 7 22 9 35 31 52 47 49 55 51 57 55 71 62 Average Rating 33 | 4 6 6 8 8 27 28 37 41 42 45 43 48 48 54 38 On Entrance 28 | . 7 5 7 9 9 25 28 42 42 35 42 51 52 41 62 Naked Turns . | . . . . . . . . . . . . . . . . Heaviest Build 29 | 12 18 20 8 8 16 9 20 24 14 11 6 11 11 29 28 Greatest Support 80 | 40 40 40 8 8 80 60 70 19 24 24 6 10 10 21 15 Greatest Overweight (x) 7 | . . . . . 1 . 1 1 . . . 1 1 1 7 Average Overweight (x) . | . . . . . . . . . . . . . . . . Largest Inventory Capacity 25 | 8 25 10 10 5 5 5 5 5 5 5 5 5 5 5 5 Average Capacity 5 | 7 8 10 5 5 5 5 5 5 5 5 5 5 5 5 5 Most Carried 8 | 4 7 8 8 5 5 5 5 5 5 5 5 5 5 5 5 Average Carried 4 | 1 4 7 4 4 4 2 3 4 4 4 4 4 4 4 3 Final Capacity 10 | 8 10 10 5 5 5 5 5 5 5 5 5 5 5 5 5 Final Carried 8 | 2 7 8 5 5 5 3 3 4 5 5 5 4 5 5 2 Class Distribution -------------------- 30% | Mutant 17% | Assassin 14% | Scavenger-Mutant 8% | Hacker-Sprinter 7% | Scavenger-Sprinter 6% | Scavenger-Scout 5% | Skirmisher 5% | Hacker-Mutant 4% | Sprinter Dominant Class ---------------- Mutant | -10/Materials Mutant | -10/Mines Scavenger-Mutant | -10/Exiles Scavenger-Scout | -9/Mines Assassin | -8/Materials Assassin | -7/Factory Scavenger-Mutant | -7/Waste Scavenger-Sprinter | -7/Factory Hacker-Sprinter | -7/Storage Hacker-Mutant | -6/Factory Mutant | -5/Factory Scavenger-Mutant | -5/Upper Caves Sprinter | -5/Upper Caves Mutant | -5/Warlord Mutant | -4/Proximity Caves Resources | -11 -10 -10 -10 -9 -8 -7 -7 -7 -7 -6 -5 -5 -5 -5 -4 ----------- Run | Yrd Mat Min Exi Min Mat Fac Was Fac Sto Fac Fac Upp Upp War Pro Matter Collected 1693 | 269 116 29 . 75 409 83 70 63 136 . 25 170 68 130 50 Remotely 190 | 74 116 . . . . . . . . . . . . . . Salvage Created 2155 | 82 177 53 . . 704 165 . 87 532 88 94 65 108 . . Parts 117 | 2 12 4 . . 31 14 . . 25 10 7 7 5 . . Haulers Intercepted . | . . . . . . . . . . . . . . . . Recyclers Shooed 2 | . . . . . 1 . . . 1 . . . . . . Parts Field Recycled . | . . . . . . . . . . . . . . . . Retrieved Matter . | . . . . . . . . . . . . . . . . Parts Self-Destructed 7 | . . . . . . . . . . . . 5 2 . . Prevented 1 | . . . . . . . . . . . . 1 . . . Kills | -11 -10 -10 -10 -9 -8 -7 -7 -7 -7 -6 -5 -5 -5 -5 -4 ------- Run | Yrd Mat Min Exi Min Mat Fac Was Fac Sto Fac Fac Upp Upp War Pro Combat Hostiles Destroyed 45 | . 5 3 . . 13 6 . 2 8 1 1 3 3 . . Melee 25 | . . . . . 4 6 . 2 7 1 . 2 3 . . Guns 8 | . 4 1 . . 3 . . . . . . . . . . AOE 11 | . 1 2 . . 5 . . . 1 . 1 1 . . . Classes Destroyed 11 | 1 4 . . . 3 . . . 1 . 1 . 1 . . Worker 3 | . 1 . . . . 1 . . . 1 . . . . . Builder 4 | . 1 . . . 1 1 . . 1 . . . . . . Tunneler 1 | . . . . . . . . . . . 1 . . . . Recycler 2 | 1 . . . . . . . . 1 . . . . . . Minesweeper 1 | . . . . . . . . . . . . . 1 . . Operator 2 | . . . . . 1 . . 1 . . . . . . . Watcher 4 | . . . . . 2 . . . . 1 1 . . . . Swarmer 18 | . 3 3 . . . 6 . . . . . 3 3 . . Grunt 22 | . 2 . . . 12 . . 2 5 . 1 . . . . Duelist 1 | . . . . . 1 . . . . . . . . . . Sentry 4 | . . . . . . . . . 3 1 . . . . . Best Kill Streak 6 | 1 4 3 . . 4 3 . 1 6 3 3 2 4 . . Combat Bots Only 6 | . 3 3 . . 3 2 . 1 6 1 1 2 3 . . Max Kills in Single Turn 3 | 1 2 2 . . 3 1 . 1 1 2 2 1 1 . . Gunslinging . | . . . . . . . . . . . . . . . . Exploded 2 | . 1 2 . . 2 . . . 1 . 1 1 . . . Melee 1 | . . . . . 1 1 . 1 1 1 . 1 1 . . Uniques/NPCs Destroyed . | . . . . . . . . . . . . . . . . Combat | -11 -10 -10 -10 -9 -8 -7 -7 -7 -7 -6 -5 -5 -5 -5 -4 -------- Run | Yrd Mat Min Exi Min Mat Fac Was Fac Sto Fac Fac Upp Upp War Pro Hostile Shots Fired 652 | . 43 4 . . 113 95 . 14 178 54 . 28 43 1 79 Missed 245 | . 13 1 . . 31 25 . 6 94 23 . 11 19 . 22 Damage Taken 6480 | . 317 26 . . 1426 1044 . 107 998 394 . 272 440 110 1346 Core 1897 | . 92 8 . . 192 178 . 24 302 90 . 143 93 19 756 Absorbed by Shields 92 | . . . . . . . . 39 53 . . . . . . Regen/Repaired (Parts) 116 | . . . . . . . 31 11 . 56 . . . 18 . Core Remaining (%) 68 | 100 . . . 60 65 . . . 28 89 . . . . . Volleys Fired 66 | 3 18 3 . . 35 . . 3 2 . . . 2 . . Largest 2 | 2 2 2 . . 2 . . 1 1 . . . 1 . . Hottest 60 | 40 60 60 . . 60 . . 40 36 . . . 33 . . Shots Fired 119 | 6 36 6 . . 64 . . 3 2 . . . 2 . . Gun 104 | 6 36 6 . . 51 . . 3 . . . . 2 . . Cannon . | . . . . . . . . . . . . . . . . Launcher 15 | . . . . . 13 . . . 2 . . . . . . Special . | . . . . . . . . . . . . . . . . Kinetic 66 | 6 27 3 . . 28 . . . . . . . 2 . . Thermal 3 | . . . . . . . . 3 . . . . . . . Explosive 4 | . . . . . 4 . . . . . . . . . . Electromagnetic 46 | . 9 3 . . 32 . . . 2 . . . . . . Robot Hit Streak 12 | 2 3 4 . . 12 . . 1 3 . . . . . . Robot Miss Streak 6 | 1 4 2 . . 6 . . 2 . . . . 2 . . Penetration Max . | . . . . . . . . . . . . . . . . Secondary Targets . | . . . . . . . . . . . . . . . . Shots Hit Robots 138 | 3 16 4 . . 47 15 . 12 25 6 2 2 4 1 1 Core Hits 85 | 2 13 3 . . 32 6 . 1 18 4 3 2 1 . . Critical Kills 1 | . . . . . . . . . . . . . 1 . . Critical Parts Destroyed 4 | . . . . . 2 . . . . . . . 2 . . Critical Strikes 11 | . . . . . 3 . . 1 3 1 . . 3 . . Destroy 1 | . . . . . 1 . . . . . . . . . . Smash 4 | . . . . . 1 . . . . . . . 3 . . Sever 6 | . . . . . 1 . . 1 3 1 . . . . . Melee Attacks 199 | . . . . . 19 36 . 21 82 18 6 3 10 2 2 Thermal 4 | . . . . . . . . . . . . . . 2 2 Impact 19 | . . . . . 9 . . . . . . . 10 . . Slashing 174 | . . . . . 10 35 . 20 82 18 6 3 . . . Piercing . | . . . . . . . . . . . . . . . . Sneak Attacks 10 | . . . . . 1 2 . . 4 1 1 . 1 . . Combat Hostiles . | . . . . . . . . . . . . . . . . Follow-up Attacks . | . . . . . . . . . . . . . . . . Damage Inflicted 5229 | 31 258 83 . . 1703 523 . 378 989 504 381 84 295 . . Guns 728 | 31 190 32 . . 437 . . 14 . . . . 24 . . Cannons . | . . . . . . . . . . . . . . . . Explosions 1567 | . 68 51 . . 807 . . . 137 253 251 . . . . Melee 2934 | . . . . . 459 523 . 364 852 251 130 84 271 . . Ramming . | . . . . . . . . . . . . . . . . Kinetic 388 | 31 116 10 . . 207 . . . . . . . 24 . . Thermal 709 | . 68 51 . . 72 . . 14 . 253 251 . . . . Explosive 346 | . . . . . 346 . . . . . . . . . . Electromagnetic 852 | . 74 22 . . 619 . . . 137 . . . . . . Impact 502 | . . . . . 231 . . . . . . . 271 . . Slashing 2432 | . . . . . 228 523 . 364 852 251 130 84 . . . Piercing . | . . . . . . . . . . . . . . . . Highest Corruption 13 | . . . . . 1 . . 1 13 . . . . . 12 Average Corruption 2 | . . . . . 1 . . 1 7 . . . . . 12 Corruption Purged . | . . . . . . . . . . . . . . . . Corruption Blocked . | . . . . . . . . . . . . . . . . Effects 23 | . . . . . 6 . . 3 13 . . . . . 1 Message Errors 4 | . . . . . 2 . . 1 1 . . . . . . Matter Fused 3 | . . . . . . . . 1 2 . . . . . . Heat Flow Errors 2 | . . . . . 2 . . . . . . . . . . Energy Discharges 1 | . . . . . . . . . 1 . . . . . . Parts Rejected 2 | . . . . . . . . 1 1 . . . . . . Data Loss (minor) 6 | . . . . . 1 . . . 4 . . . . . 1 Data Loss (major) 1 | . . . . . . . . . 1 . . . . . . Misfires 1 | . . . . . 1 . . . . . . . . . . Alerts 1 | . . . . . . . . . 1 . . . . . . Misdirections 2 | . . . . . . . . . 2 . . . . . . Overload Shots . | . . . . . . . . . . . . . . . . Overflow Damage 502 | . . . . . 64 43 . 107 83 80 8 . 117 . . Projectiles . | . . . . . . . . . . . . . . . . Explosions 45 | . . . . . 7 . . . . 38 . . . . . Melee 457 | . . . . . 57 43 . 107 83 42 8 . 117 . . Knockbacks 3 | . . . . . 3 . . . . . . . . . . Impact 3 | . . . . . 3 . . . . . . . . . . Kinetic . | . . . . . . . . . . . . . . . . Secondary . | . . . . . . . . . . . . . . . . Self-Inflicted Damage 247 | . . . . . 166 . . . 81 . . . . . . Shots 9 | . . . . . 6 . . . 3 . . . . . . Rammed . | . . . . . . . . . . . . . . . . Targets Rammed . | . . . . . . . . . . . . . . . . Kicked . | . . . . . . . . . . . . . . . . Crushed . | . . . . . . . . . . . . . . . . Highest Temperature 266 | . 24 . . . 266 . . 8 8 2 . . . . . Average Temperature 38 | . 16 . . . 49 . . 6 5 2 . . . . . Received Heat Transfer 1539 | . 117 . . . 792 . . 36 291 90 . 9 54 . 150 Siege Activations . | . . . . . . . . . . . . . . . . Robots Corrupted 1 | . . . . . 1 . . . . . . . . . . Combat Hostiles 1 | . . . . . 1 . . . . . . . . . . Parts Fried 5 | . . . . . 4 . . . . . . . 1 . . Impact Corruptions 5 | . . . . . 2 . . . . . . . 3 . . Robots Melted . | . . . . . . . . . . . . . . . . Combat Hostiles . | . . . . . . . . . . . . . . . . Parts Melted . | . . . . . . . . . . . . . . . . Heat Transferred 537 | . 50 50 . . 50 . . 37 . 150 200 . . . . Parts Sabotaged . | . . . . . . . . . . . . . . . . Parts Stolen . | . . . . . . . . . . . . . . . . Parts Stripped . | . . . . . . . . . . . . . . . . Power Chain Reactions 6 | . 1 1 . . 3 . . . 1 . . . . . . Alert | -11 -10 -10 -10 -9 -8 -7 -7 -7 -7 -6 -5 -5 -5 -5 -4 ------- Run | Yrd Mat Min Exi Min Mat Fac Was Fac Sto Fac Fac Upp Upp War Pro Peak Influence 831 | 5 125 76 . . 169 199 138 831 435 294 373 . . . . Initial 299 | . 3 . . . . 46 69 96 299 151 128 . . . . Average 146 | 1 46 66 . . 51 89 121 425 296 203 197 . . . . Maximum Alert Level 3 | . . . . . . . . 3 2 1 1 . . . . Low Security (%) 78 | 100 100 100 . 100 100 100 100 36 6 65 77 . . . . Level 1 12 | . . . . . . . . 6 84 34 22 . . . . Level 2 6 | . . . . . . . . 38 9 . . . . . . Level 3 2 | . . . . . . . . 18 . . . . . . . Level 4 . | . . . . . . . . . . . . . . . . Level 5 . | . . . . . . . . . . . . . . . . High Security . | . . . . . . . . . . . . . . . . Max Security . | . . . . . . . . . . . . . . . . Squads Dispatched 25 | . . . . . 5 3 . 9 3 2 3 . . . . Investigation 12 | . . . . . 3 1 . 4 1 . 3 . . . . Extermination . | . . . . . . . . . . . . . . . . Reinforcement 8 | . . . . . 2 . . 2 2 2 . . . . . Assault . | . . . . . . . . . . . . . . . . Garrison 5 | . . . . . . 2 . 3 . . . . . . . Intercept . | . . . . . . . . . . . . . . . . Searches Triggered . | . . . . . . . . . . . . . . . . Construction Impeded 1 | . . . . . . . . . 1 . . . . . . Haulers Reinforced 2 | . . . . . . . . 1 1 . . . . . . Active Scanning Responses . | . . . . . . . . . . . . . . . . Cargo Convoy Interrupts . | . . . . . . . . . . . . . . . . Stealth | -11 -10 -10 -10 -9 -8 -7 -7 -7 -7 -6 -5 -5 -5 -5 -4 --------- Run | Yrd Mat Min Exi Min Mat Fac Was Fac Sto Fac Fac Upp Upp War Pro Distress Signals 15 | . . . . . 1 2 . 5 6 . . . . 1 . Communications Jammed . | . . . . . . . . . . . . . . . . Distress Signals . | . . . . . . . . . . . . . . . . Times Spotted 165 | . 7 3 . . 24 13 5 12 29 13 2 6 10 31 10 Peak Tracking Total 12 | . 3 3 . . 3 5 3 4 10 8 2 5 10 12 9 Tactical Retreats 23 | . . . . . 2 4 . . 7 2 1 1 2 3 1 Traps | -11 -10 -10 -10 -9 -8 -7 -7 -7 -7 -6 -5 -5 -5 -5 -4 ------- Run | Yrd Mat Min Exi Min Mat Fac Was Fac Sto Fac Fac Upp Upp War Pro Traps Triggered 4 | . . . . . 1 1 . 1 1 . . . . . . Indirectly 1 | . . . . . 1 . . . . . . . . . . Trap Hack Attempts . | . . . . . . . . . . . . . . . . Triggered . | . . . . . . . . . . . . . . . . Disarmed 6 | . . . . . . . . . . . 6 . . . . Reprogrammed . | . . . . . . . . . . . . . . . . Reused . | . . . . . . . . . . . . . . . . Traps Extracted . | . . . . . . . . . . . . . . . . Installed . | . . . . . . . . . . . . . . . . Triggered 9 | . . . . . . . . . . . . 1 1 7 . Objects Rigged 8 | . . . . . . . . . . 5 3 . . . . Exploded 2 | . . . . . . . . . . 1 1 . . . . Machines | -11 -10 -10 -10 -9 -8 -7 -7 -7 -7 -6 -5 -5 -5 -5 -4 ---------- Run | Yrd Mat Min Exi Min Mat Fac Was Fac Sto Fac Fac Upp Upp War Pro Machines Disabled 15 | . . . . . 3 . . 3 2 3 4 . . . . Max in Single Turn 4 | . . . . . 1 . . . 1 3 4 . . . . Garrison Access 2 | . . . . . 1 . . 1 . . . . . . . Machines Repaired . | . . . . . . . . . . . . . . . . Machines Dismantled . | . . . . . . . . . . . . . . . . Machines Sabotaged . | . . . . . . . . . . . . . . . . Overloaded Fab Kills . | . . . . . . . . . . . . . . . . Hacking | -11 -10 -10 -10 -9 -8 -7 -7 -7 -7 -6 -5 -5 -5 -5 -4 --------- Run | Yrd Mat Min Exi Min Mat Fac Was Fac Sto Fac Fac Upp Upp War Pro Machines Accessed 36 | . 1 . 1 . 3 3 . 10 6 3 6 . 1 2 . Terminals 20 | . 1 . . . 1 1 . 5 6 2 4 . . . . Fabricators 4 | . . . . . . 1 . 1 . . 2 . . . . Repair Stations 2 | . . . . . . . . 1 . 1 . . . . . Recycling Units 1 | . . . . . . . . 1 . . . . . . . Scanalyzers 2 | . . . . . 1 . . 1 . . . . . . . Garrison Access 3 | . . . . . 1 1 . 1 . . . . . . . Total Hacks 87 | . 4 . 1 . 9 6 . 23 15 6 19 . 1 3 . Successful 56 | . 2 . 1 . 5 4 . 13 13 5 9 . 1 3 . Failed 31 | . 2 . . . 4 2 . 10 2 1 10 . . . . Catastrophic 7 | . . . . . 1 1 . 2 2 . 1 . . . . Database Lockouts . | . . . . . . . . . . . . . . . . Manual 51 | . 4 . 1 . 7 1 . 8 13 4 12 . . 1 . Terminals 56 | . 4 . . . 6 2 . 11 15 4 14 . . . . Fabricators 10 | . . . . . . 2 . 3 . . 5 . . . . Repair Stations 4 | . . . . . . . . 2 . 2 . . . . . Recycling Units 3 | . . . . . . . . 3 . . . . . . . Scanalyzers 2 | . . . . . 1 . . 1 . . . . . . . Garrison Access 7 | . . . . . 2 2 . 3 . . . . . . . Terminal Hacks 20 | . . . 1 . . 1 . 4 7 1 2 . 1 3 . Record 2 | . . . . . . . . . . . . . . 2 . Robot Schematic 1 | . . . . . . 1 . . . . . . . . . Open Door 5 | . . . . . . . . . 3 . . . 1 1 . Open DSF 4 | . . . . . . . . 2 . 1 1 . . . . Level Access Points 1 | . . . . . . . . . 1 . . . . . . Unreport Threat 2 | . . . . . . . . 1 1 . . . . . . Disarm Traps 1 | . . . . . . . . . . . 1 . . . . Recall Investigation 2 | . . . . . . . . 1 1 . . . . . . Recall Reinforcements 1 | . . . . . . . . . 1 . . . . . . Derelict Proto ID Bank 1 | . . . 1 . . . . . . . . . . . . Fabricator Hacks 5 | . . . . . . 2 . 2 . . 1 . . . . Load Schematic 3 | . . . . . . 1 . 1 . . 1 . . . . Build 2 | . . . . . . 1 . 1 . . . . . . . Repair Station Hacks 3 | . . . . . . . . 1 . 2 . . . . . Scan Component 2 | . . . . . . . . 1 . 1 . . . . . Repair 1 | . . . . . . . . . . 1 . . . . . Recycling Unit Hacks 2 | . . . . . . . . 2 . . . . . . . Report Inventory 1 | . . . . . . . . 1 . . . . . . . Retrieve Components 1 | . . . . . . . . 1 . . . . . . . Scanalyzer . | . . . . . . . . . . . . . . . . Garrison Access Hacks 2 | . . . . . 1 . . 1 . . . . . . . Seal Access 2 | . . . . . 1 . . 1 . . . . . . . Unauthorized Hacks 24 | . 2 . . . 4 1 . 3 6 2 6 . . . . Terminals 22 | . 2 . . . 3 1 . 2 6 2 6 . . . . Track 1 | . . . . . . . . . 1 . . . . . . Assimilate 6 | . 1 . . . 1 . . . 2 . 2 . . . . Botnet 12 | . 1 . . . 1 1 . 2 3 1 3 . . . . Detonate 2 | . . . . . . . . . . 1 1 . . . . Operators 1 | . . . . . 1 . . . . . . . . . . Fabricators . | . . . . . . . . . . . . . . . . Repair Stations . | . . . . . . . . . . . . . . . . Recycling Units . | . . . . . . . . . . . . . . . . Scanalyzers 2 | . . . . . 1 . . 1 . . . . . . . Extract 2 | . . . . . 1 . . 1 . . . . . . . Garrison Access . | . . . . . . . . . . . . . . . . Data Cores Recovered . | . . . . . . . . . . . . . . . . Used . | . . . . . . . . . . . . . . . . Hacking Detections 22 | . 1 . . . 2 2 . 7 2 2 6 . . . . Full Trace Events 9 | . . . . . 1 1 . 3 1 . 3 . . . . Feedback Events 1 | . . . . . . . . . . . 1 . . . . Hackware Fried 1 | . . . . . . . . . . . 1 . . . . Feedback Blocked . | . . . . . . . . . . . . . . . . Robot Schematics Acquired 1 | . . . . . . 1 . . . . . . . . . Robots Built . | . . . . . . . . . . . . . . . . Authchips . | . . . . . . . . . . . . . . . . Time 134 | . . . . . . 134 . . . . . . . . . Total Robot Build Rating . | . . . . . . . . . . . . . . . . Part Schematics Acquired 6 | . . . . . 2 . . 4 . . . . . . . Parts Built . | . . . . . . . . . . . . . . . . Authchips . | . . . . . . . . . . . . . . . . Time 67 | . . . . . . . . 67 . . . . . . . Total Part Build Rating . | . . . . . . . . . . . . . . . . Parts Repaired 1 | . . . . . . . . . . 1 . . . . . Time 35 | . . . . . . . . . . 35 . . . . . Parts Recycled . | . . . . . . . . . . . . . . . . Recycled Matter . | . . . . . . . . . . . . . . . . Retrieved Matter . | . . . . . . . . . . . . . . . . Retrieved Components 3 | . . . . . . . . 3 . . . . . . . Parts Scanalyzed . | . . . . . . . . . . . . . . . . Part Schematics Acquired . | . . . . . . . . . . . . . . . . Parts Damaged . | . . . . . . . . . . . . . . . . Bothacking | -11 -10 -10 -10 -9 -8 -7 -7 -7 -7 -6 -5 -5 -5 -5 -4 ------------ Run | Yrd Mat Min Exi Min Mat Fac Was Fac Sto Fac Fac Upp Upp War Pro Used RIF Installer . | . . . . . . . . . . . . . . . . Robots Hacked 1 | . . . . . . . . 1 . . . . . . . Non-combat 1 | . . . . . . . . 1 . . . . . . . Combat . | . . . . . . . . . . . . . . . . Robot Hacks Applied 1 | . . . . . . . . 1 . . . . . . . no_distress 1 | . . . . . . . . 1 . . . . . . . Relay Couplers Released . | . . . . . . . . . . . . . . . . Fabnet Peak Effective % . | . . . . . . . . . . . . . . . . Robots Rewired . | . . . . . . . . . . . . . . . . Allies Hacked 1 | . . . . . . . . 1 . . . . . . . Hacks Repelled . | . . . . . . . . . . . . . . . . Allies | -11 -10 -10 -10 -9 -8 -7 -7 -7 -7 -6 -5 -5 -5 -5 -4 -------- Run | Yrd Mat Min Exi Min Mat Fac Was Fac Sto Fac Fac Upp Upp War Pro Total Allies 22 | . . . . . . . 19 3 . . . . . . . Largest Group 19 | . . . . . . . 19 15 9 . . . . . . Highest-Rated Group 475 | . . . . . . . 475 425 273 . . . . . . Highest-Rated Ally 35 | . . . . . . . 35 35 31 . . . . . . Total Orders . | . . . . . . . . . . . . . . . . Ally Attacks 233 | . . . . . . . 103 98 32 . . . . . . Total Damage 7403 | . . . . . . . 3632 3265 506 . . . . . . Kills 44 | . . . . . . . 10 31 3 . . . . . . Allies Corrupted 2 | . . . . . . . . 2 . . . . . . . Allies Melted . | . . . . . . . . . . . . . . . . Intel | -11 -10 -10 -10 -9 -8 -7 -7 -7 -7 -6 -5 -5 -5 -5 -4 ------- Run | Yrd Mat Min Exi Min Mat Fac Was Fac Sto Fac Fac Upp Upp War Pro Robot Analysis Total . | . . . . . . . . . . . . . . . . Derelict Logs Recovered 6 | . . . . 2 . . . . . . . 2 1 . 1 Drone Launches . | . . . . . . . . . . . . . . . . Drone Recoveries . | . . . . . . . . . . . . . . . . Exploration | -11 -10 -10 -10 -9 -8 -7 -7 -7 -7 -6 -5 -5 -5 -5 -4 ------------- Run | Yrd Mat Min Exi Min Mat Fac Was Fac Sto Fac Fac Upp Upp War Pro Turns Passed 5512 | 76 447 187 108 69 1438 375 147 571 443 193 133 235 181 647 262 Spaces Moved 5260 | 37 238 85 233 161 457 281 175 930 477 274 318 405 343 578 268 Core 189 | 6 . . . . . . . . . . . . . . 183 Treads 866 | 31 238 85 . . 383 115 14 . . . . . . . . Legs . | . . . . . . . . . . . . . . . . Wheels 43 | . . . . . . . . . . . . . . . 43 Hover 544 | . . . . . . . . . 169 181 . . . 194 . Flight 3618 | . . . 233 161 74 166 161 930 308 93 318 405 343 384 42 Fastest Speed 26 | 50 160 160 37 37 34 26 29 26 26 32 35 32 32 26 50 Average Speed 67 | 142 160 160 37 37 149 88 62 36 32 38 35 47 40 94 74 Slowest Speed 400 | 160 160 160 37 37 170 170 160 112 42 46 35 104 104 160 400 Overloaded Moves . | . . . . . . . . . . . . . . . . Propulsion Burnouts . | . . . . . . . . . . . . . . . . Robots Hopped . | . . . . . . . . . . . . . . . . Cave-ins Triggered 3 | . . . . . . . . . 3 . . . . . . Exploration Rate (%) 37 | 4 35 22 63 37 37 7 77 28 67 9 12 60 50 67 30 Regions Visited 15 Branch Regions 8 Pre-discovered Areas 1 | . . . . . . . . . . . . . . . 1 Known Exits Taken 8 | . . . . . 1 . . 1 1 1 1 1 1 1 . Unknown Exits Taken 5 | 1 1 1 1 1 . . . . . . . . . . . Scrap Searched 7 | . . 1 . 2 . . . . . . . 2 1 . 1 Spaces Dug 74 | . . . . . 4 3 . 8 43 11 4 . 1 . . Terrain Destroyed 250 | . 2 6 . . 98 3 . 8 49 40 43 . 1 . . Melee 74 | . . . . . 4 3 . 8 43 11 4 . 1 . . Projectile . | . . . . . . . . . . . . . . . . AOE 176 | . 2 6 . . 94 . . . 6 29 39 . . . . Terrain Rammed . | . . . . . . . . . . . . . . . . Walls Destroyed . | . . . . . . . . . . . . . . . . Machines Disabled . | . . . . . . . . . . . . . . . . Actions | -11 -10 -10 -10 -9 -8 -7 -7 -7 -7 -6 -5 -5 -5 -5 -4 --------- Run | Yrd Mat Min Exi Min Mat Fac Was Fac Sto Fac Fac Upp Upp War Pro Total 6806 | 55 270 130 254 170 1113 354 214 1129 641 330 329 443 370 678 326 Wait 1010 | . . 38 . 2 566 17 22 162 46 23 . 23 . 62 49 Move 5245 | 36 237 84 232 160 456 281 174 929 475 273 317 404 342 577 268 Hop . | . . . . . . . . . . . . . . . . Pick Up 86 | 9 8 3 4 3 9 9 6 6 12 6 2 . 4 4 1 Fast Attach 25 | . . . 1 . 5 . 1 . 1 1 1 5 5 5 . Attach 66 | 7 1 2 3 . 5 11 5 3 9 4 2 3 2 5 4 Detach 10 | . . . . . . . . . 1 . . 3 . 6 . Swap 47 | . 3 . 6 2 12 . 1 4 7 5 1 . 1 3 2 Drop 51 | . 3 . 8 3 6 . 5 1 5 . . 2 4 14 . Fire 66 | 3 18 3 . . 35 . . 3 2 . . . 2 . . Melee 199 | . . . . . 19 36 . 21 82 18 6 3 10 2 2 Ram . | . . . . . . . . . . . . . . . . Kick . | . . . . . . . . . . . . . . . . Crush . | . . . . . . . . . . . . . . . . Escape Stasis 1 | . . . . . . . . . 1 . . . . . . Rewire . | . . . . . . . . . . . . . . . . Trap . | . . . . . . . . . . . . . . . . Miscellaneous . | . . . . . . . . . . . . . . . . Route ------- -11/Scrapyard -10/Materials (discovered 2 exits: [*Mat] / [*Min]) -10/Mines (discovered 3 exits: [*Mat x2] / *Exi) -10/Exiles -9/Mines -8/Materials (discovered 2 exits: *Fac x2) -7/Factory (discovered 2 exits: *Sto / Low) -7/Waste -7/Factory (discovered 2 exits: *Sto / *Low) -7/Storage -6/Factory -5/Factory -5/Upper Caves -5/Upper Caves -5/Warlord -4/Proximity Caves History --------- Turn | Location | Event 4 | -11/Scrapyard | Discovered new exit (range 15) 77 | -11/Scrapyard | Entered Materials 275 | -10/Materials | Discovered new exit (range 9) 303 | -10/Materials | Build established: Mutant 489 | -10/Materials | Discovered new exit (range 16) 524 | -10/Materials | Entered Mines 642 | -10/Mines | Discovered new exit (range 3) 684 | -10/Mines | Discovered new exit (range 10) 704 | -10/Mines | Deemed a non-threat by the Exiles lab entrance 704 | -10/Mines | Discovered new exit (range 5) 711 | -10/Mines | Entered Exiles 731 | -10/Exiles | Met 8R-AWN 737 | -10/Exiles | Met EX-HEX 750 | -10/Exiles | Met EX-BIN 756 | -10/Exiles | Aligned with FarCom system 756 | -10/Exiles | Given EX-Vault access code 766 | -10/Exiles | Opened EX-Vault 769 | -10/Exiles | Found AWS/Thermal 782 | -10/Exiles | Found 0b10 Alert Chip 790 | -10/Exiles | Warned to stay clear of 0b10 Research branches 800 | -10/Exiles | Met EX-DEC 816 | -10/Exiles | Discovered new exit (range 10) 819 | -10/Exiles | Left Exiles lab with 0b10 Alert Chip 819 | -10/Exiles | Entered Mines 865 | -9/Mines | Learned location of 1 exit from Materials 886 | -9/Mines | Discovered new exit (range 6) 888 | -9/Mines | Entered Materials 888 | -8/Materials | Evolved 4 slots: Propulsion x2, Utility x2 889 | -8/Materials | Identified exit to Factory 1134 | -8/Materials | Build established: Scavenger-Scout 1476 | -8/Materials | Build established: Skirmisher 1837 | -8/Materials | Build established: Assassin 2248 | -8/Materials | Discovered exit to Factory (range 16) 2326 | -8/Materials | Entered Factory 2326 | -7/Factory | Evolved 2 slots: Utility x2 2327 | -7/Factory | Identified exit to Lower Caves 2356 | -7/Factory | Lost 3 parts (2n1w) 2556 | -7/Factory | Garrison activated, responded to threat 2584 | -7/Factory | Lost 5 parts (1p2n1u1w) 2651 | -7/Factory | Lost 5 parts (1p4n) 2652 | -7/Factory | Discovered new exit (range 5) 2653 | -7/Factory | Identified exit to Storage 2701 | -7/Factory | Sucked down chute 2701 | -7/Factory | Entered Waste 2702 | -7/Waste | Met a frightened Derelict 2711 | -7/Waste | Warlord forces began an assault 2715 | -7/Waste | Spotted C-40 Crusher 2718 | -7/Waste | Spotted C-40 Crusher 2720 | -7/Waste | Allies destroyed C-40 Crusher 2734 | -7/Waste | Spotted C-40 Crusher 2735 | -7/Waste | Spotted C-40 Crusher 2740 | -7/Waste | Spotted C-40 Crusher 2743 | -7/Waste | Allies destroyed C-40 Crusher 2748 | -7/Waste | Spotted C-40 Crusher 2749 | -7/Waste | Allies destroyed C-40 Crusher 2759 | -7/Waste | Allies destroyed C-40 Crusher 2786 | -7/Waste | Lost 4 allies 2821 | -7/Waste | Discovered new exit (range 16) 2838 | -7/Waste | Identified exit to Factory 2848 | -7/Waste | Entered Factory 2848 | -7/Factory | Accompanied by 15 allies 3080 | -7/Factory | Garrison activated, responded to threat 3187 | -7/Factory | Allied Derelicts emerged from ambush trap array 3265 | -7/Factory | Build established: Scavenger-Sprinter 3297 | -7/Factory | Discovered exit to Storage (range 11) 3299 | -7/Factory | Discovered exit to Lower Caves (range 14) 3413 | -7/Factory | Lost 4 allies 3419 | -7/Factory | Entered Storage 3419 | -7/Storage | Accompanied by 9 allies 3512 | -7/Storage | Lost 9 allies 3514 | -7/Storage | Identified exit to Factory 3561 | -7/Storage | Crushed by falling debris 3568 | -7/Storage | Build established: Hacker-Sprinter 3602 | -7/Storage | Lost 4 parts (1p1n1u1w) 3624 | -7/Storage | Crushed by falling debris 3628 | -7/Storage | Crushed by falling debris 3628 | -7/Storage | System corruption reached 10% 3661 | -7/Storage | Core integrity fell below 50% 3862 | -7/Storage | Entered Factory 3862 | -6/Factory | Evolved 2 slots: Power x1, Utility x1 3991 | -6/Factory | Repaired Imp. Cesium-ion Thruster 4050 | -6/Factory | Discovered new exit (range 16) 4055 | -6/Factory | Identified exit to Factory 4055 | -6/Factory | Entered another Factory area 4055 | -5/Factory | Evolved 2 slots: Utility x2 4056 | -5/Factory | Identified exit to DSF 4063 | -5/Factory | Hacking Suite fried by hacking feedback 4094 | -5/Factory | Lost 4 parts (3n1u) 4185 | -5/Factory | Discovered new exit (range 10) 4188 | -5/Factory | Identified exit to Upper Caves 4188 | -5/Factory | Entered Upper Caves 4192 | -5/Upper Caves | Learned Factory terminal intel 4262 | -5/Upper Caves | Encountered a Warlord checkpoint 4262 | -5/Upper Caves | Lost 3 parts (1n1u1w) 4310 | -5/Upper Caves | Attracted the attention of an 0b10 checkpoint 4391 | -5/Upper Caves | Identified exit to Upper Caves 4423 | -5/Upper Caves | Entered another Upper Caves area 4458 | -5/Upper Caves | Spotted B-75 Beast 4491 | -5/Upper Caves | Learned Factory terminal intel 4549 | -5/Upper Caves | Attacked by a delusional Derelict stockpiling parts 4587 | -5/Upper Caves | Discovered new exit (range 7) 4589 | -5/Upper Caves | Identified exit to Warlord 4600 | -5/Upper Caves | Lost 4 parts (1n1u2w) 4604 | -5/Upper Caves | Entered Warlord 4655 | -5/Warlord | Found Prototype Special Weapon 4655 | -5/Warlord | Identified RU-N14's Throwing Claymores v3 4663 | -5/Warlord | Met Warlord 4688 | -5/Warlord | Warlord's base attacked by MAIN.C 4859 | -5/Warlord | Build established: Mutant 5009 | -5/Warlord | Warlord forces counterattacked 5015 | -5/Warlord | Spotted B-75 Beast 5054 | -5/Warlord | Spotted Executioner 5060 | -5/Warlord | Spotted Executioner 5060 | -5/Warlord | Spotted Executioner 5094 | -5/Warlord | Lost 7 allies 5152 | -5/Warlord | Discovered new exit (range 15) 5168 | -5/Warlord | Lost 6 allies 5193 | -5/Warlord | Spotted Striker 5198 | -5/Warlord | Spotted Executioner 5203 | -5/Warlord | Spotted Executioner 5250 | -5/Warlord | Identified exit to Proximity Caves 5251 | -5/Warlord | Entered Proximity Caves 5253 | -4/Proximity Caves | Learned location of Testing (-2) 5254 | -4/Proximity Caves | Lost 13 allies 5284 | -4/Proximity Caves | Spotted B-86 Titan 5333 | -4/Proximity Caves | Lost 8 parts (2p3n2u1w) 5390 | -4/Proximity Caves | Core integrity fell below 50% 5487 | -4/Proximity Caves | Attracted the attention of an 0b10 checkpoint 5496 | -4/Proximity Caves | System corruption reached 10% 5497 | -4/Proximity Caves | Core integrity fell below 20% 5513 | -4/Proximity Caves | Destroyed by G-73 Enforcer with Phase Gun Last Messages --------------- L-61 Swordsman Lgt. Antimatter Reactor blown off. L-61 Swordsman Flexi-carbon Leg blown off. Y-64 Sentinel: "INTERCEPTING UNREGISTERED DERELICT." Penetrated by Slug. Arm. Wheel destroyed. Penetrated by Slug. 0b10 Alert Chip destroyed. Adv. Terrain Scan Processor destroyed. Segregator destroyed. System corrupted by crushing effect (+5). System corrupted by crushing effect (+2). Hvy. Gauss Cannon destroyed. Penetrated by Slug. C-30 ARC bursts open, deploying its payload. G-73 Enforcer unfolds itself. G-67 Veteran unfolds itself. System corrupted: Component data lost. [Achievement: 10k Club] Map ----- +----------------------------------------------------+ | ????? ##???# #???????????????????????????? | | ?????# #???### #???????????????????????????? | | ????## #?????## #???????????????????????????? | | #?### ##?????# #???????????????????????????? | | ### ##???##*= #???????????????????????????? | | ## ##### #???????????????????????????? | | # ## #???????????????????????????? | | ## ####????????????????????????? | | % ## ## ###??????????????????????? | | ## ### #????????????????????? | | # ### ##### ### #???????????????????? | | # #?####?# ##?### #??????????????????? | | # ######## #?#### #?????????????????? | | # ### #? #????????????????? | | # ##### #?? #### ?????????????? | | ########### ### #??? #?????????????? | | ??????????# g## #???? #? ???????????? | | ??????????## b #?????? # ???????????? | | ???????????### l ####?????? #??????????? | | ?????????????## #?####???? ??????????? | | ????####??????### ### #??? ??????????? | | ??### ##???????### #### ?????????? | | ### ####??????# gg ?????????? | | ######### g ????????? | | " ## g #????????? | | #" "" @ #?????????? | | ## #" ####### ## #??????????? | | # ##?????# #???# ?????????????? | | ## ######????## #???????????????????? | | ?## ### ##????## ##???????????????????? | | #### ## #?????# #????????????????????? | | ### #?????## ???????????????????? | | ## # #??????? ??????????????????? | | ## #?????? ##?????????????????? | | # #### ## #?????? ##??????????????????? | | #######??########?????????####???????????????????? | | ?????????????????????????????????????????????????? | | ?????????????????????????????????????????????????? | | ?????????????????????????????????????????????????? | | ?????????????????????????????????????????????????? | | ?????????????????????????????????????????????????? | | ?????????????????????????????????????????????????? | | ?????????????????????????????????????????????????? | | ?????????????????????????????????????????????????? | | ?????????????????????????????????????????????????? | | ?????????????????????????????????????????????????? | | ?????????????????????????????????????????????????? | | ?????????????????????????????????????????????????? | | ?????????????????????????????????????????????????? | | ?????????????????????????????????????????????????? | +----------------------------------------------------+ Best States ------------- Heat Dissipation 40 Energy Generation 34 Energy Capacity 360 Matter Stores 300 Matter Capacity 300 Sight Range 16 Terrain Scan Range 14 Terrain Scan Density 210 ECM Strength 2 Armor Coverage 150 Phase Shifting 5 Evasion (%) 68 Melee Accuracy 24 Target Analysis 5 Core Analysis 6 Recoil Reduction 4 Offensive Hacking 20 Item Schematics ----------------- Lrg. Storage Unit | -8/Materials | Extracted Mace | -8/Materials | Extracted Imp. Field Recycling Unit | -7/Factory | Extracted Seismic Detector | -7/Factory | Extracted ECM Suite | -7/Factory | Extracted Imp. Airjet | -7/Factory | Extracted Robot Schematics ------------------ S-27 Virus | -7/Factory | Hacked Fabricated ------------ Nothing Alien Tech Used ----------------- None Achievements -------------- 10k Club A Powerful Ally? Charge!!! Part-time Excavator The More The Merrier Challenges ------------ None Game ------ Seed HybridPointyPropulsion Manual? 0 Play Time 01:27:15 Cumulative 7.1 hours Start 2025.05.05 @ 18:21:26 End 2025.05.05 @ 19:46:18 Sessions 1 Manual Loads 0 Difficulty Rogue Special Mode None Game No. 23 Rogue 23 Adventurer 0 Explorer 0 Win Type - Total 0 Types 0/0/0/0/0/0/0/0/0 Lore% 9 Gallery% 16 Achievement% 17 Wizard Run 0 Options --------- Layout 1 ASCII 0 Keyboard 0 Movement Mouse Keybinds 0 Fullscreen 2 Font 24/Smallcaps Map View 50x35 Zoom Use 0% Tactical HUD 0 Map Filters NONE Filters NONE Steam 1 RUN: 3eede87c-57c4-442e-baaf-d51aa80f98a6